Cogmind - Beta 13 @@@ ROGUE MODE // 2024.04.06 @ 13:47:05 Player: Bananaman Result: Destroyed by S-27 Virus with Autogun Performance ------------- Evolutions (3) 1500 Regions Visited (5) 1000 Robots Destroyed (48) 240 Value Destroyed (1510) 1510 Prototype IDs (1) 20 Alien Tech Used (0) 0 Bonus (0) 0 TOTAL SCORE: 4270 Bonus ------- None Cogmind --------- Core Integrity 0/700 Matter 289/300 Energy 47/100 System Corruption 21% Temperature Cool (0) Movement Walking (130) Location -7/Factory Parts ------- > --- POWER (1) -------- (None) > --- PROPULSION (4) --- Improved Titanium Leg > --- UTILITY (4) ------ (None) > --- WEAPON (4) ------- (None) > --- INVENTORY (5) ---- Improved Deuterium Engine Plasma Cannon Peak State ------------ > --- POWER ------------ Micro Nuclear Core > --- PROPULSION ------- Improved Aluminum Leg Carbon-fiber Leg Improved Titanium Leg Improved Titanium Leg > --- UTILITY ---------- Structural Scanner Transmission Jammer Improved Medium Armor Plating Shield Generator > --- WEAPON ----------- Heavy Laser Assault Cannon Gauss Cannon Remote Datajack > --- INVENTORY -------- Ion Engine Light Deuterium Engine Improved Targeting Computer Lightning Gun Arc Projector [Rating: 44] Favorites ----------- Power Ion Engine Engine Ion Engine Power Core Light Nuclear Core Propulsion Aluminum Leg Leg Aluminum Leg Wheel Wheel Hover Unit Cooled Airjet Flight Unit Flight Unit Utility Shield Generator Device Shield Generator Storage Medium Storage Unit Processor Improved Targeting Computer Protection Improved Medium Armor Plating Weapon Assault Cannon Energy Gun Spread Laser Energy Cannon Plasma Cannon Ballistic Gun Shotgun Ballistic Cannon Assault Cannon Special Weapon Remote Datajack Slashing Weapon Mining Claw Build | -11 -10 -9 -9 -8 -7 ------- Run | Yrd Mat Mat Min Mat Fac Slots Evolved 6 | . . 2 . 2 2 Power . | . . . . . . Propulsion 2 | . . 2 . . . Utility 2 | . . . . 1 1 Weapon 2 | . . . . 1 1 Parts Attached 75 | 7 7 6 2 24 29 Power 11 | 1 . . 1 4 5 Engine 8 | 1 . . 1 2 4 Core 3 | . . . . 2 1 Reactor . | . . . . . . Propulsion 26 | 2 2 4 . 9 9 Treads . | . . . . . . Leg 16 | . . . . 9 7 Wheel 4 | 2 2 . . . . Hover 1 | . . . . . 1 Flight 5 | . . 4 . . 1 Utility 18 | 2 3 1 1 4 7 Device 12 | 1 2 1 1 3 4 Storage 3 | 1 1 . . . 1 Processor 2 | . . . . 1 1 Hackware . | . . . . . . Protection 1 | . . . . . 1 Artifact . | . . . . . . Weapon 20 | 2 2 1 . 7 8 Energy Gun 7 | 1 . . . 2 4 Energy Cannon 1 | . . . . . 1 Ballistic Gun 6 | 1 2 1 . 2 . Ballistic Cannon 3 | . . . . 2 1 Launcher . | . . . . . . Special Weapon 1 | . . . . . 1 Impact Weapon . | . . . . . . Slashing Weapon 2 | . . . . 1 1 Piercing Weapon . | . . . . . . Special Melee Weapon . | . . . . . . Unidentified Prototypes 1 | . . . . . 1 Corrupted Parts 1 | . . . . . 1 System Corruption 5 | . . . . . 5 Parts Lost 32 | . 1 . 7 1 23 Power 5 | . . . 1 . 4 Propulsion 11 | . . . 4 . 7 Utility 10 | . 1 . 2 1 6 Weapon 6 | . . . . . 6 Highest Loss Streak 17 | . 1 . 7 1 17 To Critical Strikes 2 | . . . . . 2 Average Slot Usage (%) 82 | . 98 100 91 82 77 Engine 6 | . 14 11 11 5 5 Core 1 | . . . . 3 . Leg 16 | . . . . 23 16 Wheel 2 | . 28 . . . . Flight 2 | . . 44 39 . . Device 18 | . 12 19 19 16 20 Storage 1 | . 14 2 . . . Processor 5 | . . . . 8 4 Protection 1 | . . . . . 2 Energy Gun 8 | . 1 . . 9 11 Ballistic Gun 6 | . 26 22 19 8 . Ballistic Cannon 7 | . . . . 6 11 Naked Turns 9 | . . . 5 . 4 Heaviest Build 39 | 15 23 15 15 23 39 Greatest Support 68 | 20 32 16 16 54 68 Greatest Overweight (x) 6 | . 1 . 1 6 2 Average Overweight (x) . | . . . . . . Largest Inventory Capacity 10 | 8 10 10 5 5 5 Average Capacity 5 | 6 9 5 5 5 5 Most Carried 10 | 5 10 9 5 5 5 Average Carried 4 | 2 8 3 4 4 3 Final Capacity 10 | 8 10 5 5 5 5 Final Carried 9 | 4 9 5 5 4 2 Class Distribution -------------------- 28% | Gunner 25% | Mutant 12% | Tank 9% | Scavenger-Tank 8% | Infiltrator-Tank 5% | Scavenger-Gunner 4% | Scavenger-Sprinter 4% | Scavenger-Mutant Dominant Class ---------------- Mutant | -10/Materials Scavenger-Sprinter | -9/Materials Scavenger-Sprinter | -9/Mines Tank | -8/Materials Gunner | -7/Factory Resources | -11 -10 -9 -9 -8 -7 ----------- Run | Yrd Mat Mat Min Mat Fac Matter Collected 1841 | 273 129 . 88 640 711 Remotely 217 | 181 . . . 36 . Salvage Created 1430 | 100 177 15 21 536 581 Parts 89 | 4 22 1 . 35 27 Haulers Intercepted . | . . . . . . Recyclers Shooed 1 | . 1 . . . . Parts Field Recycled . | . . . . . . Retrieved Matter . | . . . . . . Parts Self-Destructed . | . . . . . . Prevented . | . . . . . . Kills | -11 -10 -9 -9 -8 -7 ------- Run | Yrd Mat Mat Min Mat Fac Combat Hostiles Destroyed 35 | . 7 . 3 17 8 Guns 22 | . 7 . 3 8 4 Cannons 12 | . . . . 9 3 Classes Destroyed 14 | 1 5 . 1 3 4 Builder 7 | . 1 . . 3 3 Recycler 3 | 1 . . . 1 1 Mechanic 1 | . . . . . 1 Operator 1 | . 1 . . . . Watcher 4 | . 1 1 . 1 1 Swarmer 6 | . 6 . . . . Cutter 3 | . . . . 3 . Grunt 16 | . 1 . . 10 5 Brawler 1 | . . . . . 1 Duelist 1 | . . . . . 1 Sentry 2 | . . . . 2 . Hunter 2 | . . . . 2 . Programmer 1 | . . . . . 1 Assembled 3 | . . . 3 . . Best Kill Streak 6 | 1 6 1 3 4 4 Combat Bots Only 3 | . 3 . 3 3 2 Max Kills in Single Turn 2 | 1 2 1 1 1 2 Gunslinging . | . . . . . . Exploded . | . . . . . . Melee . | . . . . . . Uniques/NPCs Destroyed . | . . . . . . Combat | -11 -10 -9 -9 -8 -7 -------- Run | Yrd Mat Mat Min Mat Fac Hostile Shots Fired 361 | . 47 2 26 87 199 Missed 108 | . 12 1 8 31 56 Damage Taken 3960 | 5 233 11 420 677 2614 Core 982 | . 60 . 146 65 711 Absorbed by Shields 530 | . 49 4 74 258 145 Core Remaining (%) 81 | 100 76 . 63 88 . Volleys Fired 160 | 4 24 2 10 57 63 Largest 4 | 1 2 2 2 3 4 Hottest 237 | 20 46 46 46 174 237 Shots Fired 343 | 4 48 4 20 149 118 Gun 226 | 4 48 4 20 100 50 Cannon 112 | . . . . 49 63 Launcher . | . . . . . . Special 5 | . . . . . 5 Kinetic 214 | 4 48 4 20 75 63 Thermal 114 | . . . . 74 40 Explosive . | . . . . . . Electromagnetic 10 | . . . . . 10 Robot Hit Streak 25 | 4 4 1 3 25 6 Robot Miss Streak 10 | . 10 5 6 6 10 Penetration Max 1 | . . . . . 1 Secondary Targets 2 | . 2 . . . . Max Gunslinging Chain 1 | . 1 . . . . Shots Hit Robots 200 | 4 27 2 11 105 51 Core Hits 164 | 3 14 2 6 113 26 Critical Kills . | . . . . . . Critical Parts Destroyed . | . . . . . . Critical Strikes 3 | . . . . 1 2 Burn 1 | . . . . . 1 Blast 2 | . . . . 1 1 Melee Attacks 13 | . . . . 13 . Impact . | . . . . . . Slashing 13 | . . . . 13 . Piercing . | . . . . . . Sneak Attacks . | . . . . . . Combat Hostiles . | . . . . . . Follow-up Attacks . | . . . . . . Damage Inflicted 3757 | 65 335 18 150 1803 1386 Guns 2245 | 54 335 18 150 1174 514 Cannons 1483 | . . . . 629 854 Explosions . | . . . . . . Melee . | . . . . . . Ramming 29 | 11 . . . . 18 Kinetic 2256 | 54 335 18 150 845 854 Thermal 1327 | . . . . 958 369 Explosive . | . . . . . . Electromagnetic 145 | . . . . . 145 Impact . | . . . . . . Slashing . | . . . . . . Piercing . | . . . . . . Highest Corruption 21 | . . . . . 21 Average Corruption 5 | . . . . . 5 Corruption Purged . | . . . . . . Corruption Blocked . | . . . . . . Effects 23 | . . . . . 23 Message Errors 3 | . . . . . 3 Matter Fused 5 | . . . . . 5 Heat Flow Errors 5 | . . . . . 5 Energy Discharges 5 | . . . . . 5 Data Loss (minor) 1 | . . . . . 1 Alerts 1 | . . . . . 1 Misdirections 1 | . . . . . 1 Weapon Failures 2 | . . . . . 2 Overload Shots . | . . . . . . Overflow Damage 40 | . . . . . 40 Projectiles 40 | . . . . . 40 Explosions . | . . . . . . Melee . | . . . . . . Knockbacks 17 | . . . . 7 10 Impact . | . . . . . . Kinetic 17 | . . . . 7 10 Secondary . | . . . . . . Self-Inflicted Damage 9 | 5 . . . . 4 Shots . | . . . . . . Rammed 5 | 3 . . . . 2 Targets Rammed 20 | 3 . . . . 17 Kicked 15 | . . . . . 15 Crushed . | . . . . . . Highest Temperature 612 | . . 4 53 471 612 Average Temperature 164 | . . 3 24 147 200 Received Heat Transfer 1198 | . . 6 132 280 780 Effects 31 | . . . . 13 18 Shutdowns 6 | . . . . 2 4 Energy Bleed 8 | . . . . 5 3 Interference 2 | . . . . . 2 Short Circuit 1 | . . . . . 1 Damage (minor) 2 | . . . . . 2 Damage (major) 12 | . . . . 6 6 Siege Activations . | . . . . . . Robots Corrupted 1 | . . . . . 1 Combat Hostiles 1 | . . . . . 1 Parts Fried 2 | . . . . . 2 Impact Corruptions . | . . . . . . Robots Melted . | . . . . . . Combat Hostiles . | . . . . . . Parts Melted . | . . . . . . Heat Transferred 1945 | . . . . 1195 750 Parts Sabotaged . | . . . . . . Parts Stolen . | . . . . . . Parts Stripped . | . . . . . . Power Chain Reactions . | . . . . . . Alert | -11 -10 -9 -9 -8 -7 ------- Run | Yrd Mat Mat Min Mat Fac Peak Influence 331 | 5 196 134 52 331 290 Initial 150 | . 3 82 52 . 150 Average 105 | 1 110 104 46 120 102 Maximum Alert Level 1 | . . . . 1 1 Low Security (%) 82 | 100 100 100 100 72 84 Level 1 17 | . . . . 27 15 Level 2 . | . . . . . . Level 3 . | . . . . . . Level 4 . | . . . . . . Level 5 . | . . . . . . High Security . | . . . . . . Max Security . | . . . . . . Squads Dispatched 9 | . . 1 . 4 4 Investigation 1 | . . . . 1 . Extermination 1 | . . . . . 1 Reinforcement 6 | . . 1 . 3 2 Assault 1 | . . . . . 1 Garrison . | . . . . . . Intercept . | . . . . . . Searches Triggered . | . . . . . . Construction Impeded 1 | . . . . . 1 Haulers Reinforced . | . . . . . . Active Scanning Responses . | . . . . . . Cargo Convoy Interrupts . | . . . . . . Stealth | -11 -10 -9 -9 -8 -7 --------- Run | Yrd Mat Mat Min Mat Fac Distress Signals 5 | . 1 . . 2 2 Communications Jammed 3 | . . . . . 3 Distress Signals 3 | . . . . . 3 Times Spotted 76 | . 10 4 5 27 30 Peak Tracking Total 13 | . 3 5 3 4 13 Tactical Retreats 5 | . . . . 3 2 Traps | -11 -10 -9 -9 -8 -7 ------- Run | Yrd Mat Mat Min Mat Fac Traps Triggered 5 | . . . . 1 4 Indirectly . | . . . . . . Trap Hack Attempts . | . . . . . . Triggered . | . . . . . . Disarmed . | . . . . . . Reprogrammed . | . . . . . . Reused . | . . . . . . Traps Extracted . | . . . . . . Installed . | . . . . . . Triggered . | . . . . . . Machines | -11 -10 -9 -9 -8 -7 ---------- Run | Yrd Mat Mat Min Mat Fac Machines Disabled 3 | . . . . . 3 Max in Single Turn 1 | . . . . . 1 Garrison Access 1 | . . . . . 1 Machines Repaired . | . . . . . . Machines Dismantled . | . . . . . . Machines Sabotaged . | . . . . . . Overloaded Fab Kills . | . . . . . . Hacking | -11 -10 -9 -9 -8 -7 --------- Run | Yrd Mat Mat Min Mat Fac Machines Accessed 8 | . 4 1 . 2 1 Terminals 7 | . 4 1 . 1 1 Fabricators . | . . . . . . Repair Stations . | . . . . . . Recycling Units 1 | . . . . 1 . Scanalyzers . | . . . . . . Garrison Access . | . . . . . . Total Hacks 11 | . 4 1 . 5 1 Successful 8 | . 2 1 . 4 1 Failed 3 | . 2 . . 1 . Catastrophic . | . . . . . . Database Lockouts . | . . . . . . Manual . | . . . . . . Terminals 8 | . 4 1 . 2 1 Fabricators . | . . . . . . Repair Stations . | . . . . . . Recycling Units 3 | . . . . 3 . Scanalyzers . | . . . . . . Garrison Access . | . . . . . . Terminal Hacks 6 | . 2 1 . 2 1 Emergency Access Points 1 | . . . . 1 . Alert Level 2 | . . 1 . 1 . Locate Traps 2 | . 2 . . . . Maintenance Status 1 | . . . . . 1 Fabricator Hacks . | . . . . . . Repair Station Hacks . | . . . . . . Recycling Unit Hacks 2 | . . . . 2 . Process 1 | . . . . 1 . Report Inventory 1 | . . . . 1 . Scanalyzer . | . . . . . . Garrison Access Hacks . | . . . . . . Unauthorized Hacks . | . . . . . . Terminals . | . . . . . . Fabricators . | . . . . . . Repair Stations . | . . . . . . Recycling Units . | . . . . . . Scanalyzers . | . . . . . . Garrison Access . | . . . . . . Data Cores Recovered 1 | . 1 . . . . Used . | . . . . . . Hacking Detections 4 | . 2 . . 1 1 Full Trace Events 1 | . . . . 1 . Feedback Events . | . . . . . . Feedback Blocked . | . . . . . . Robot Schematics Acquired . | . . . . . . Robots Built . | . . . . . . Authchips . | . . . . . . Time . | . . . . . . Total Robot Build Rating . | . . . . . . Part Schematics Acquired . | . . . . . . Parts Built . | . . . . . . Authchips . | . . . . . . Time . | . . . . . . Total Part Build Rating . | . . . . . . Parts Repaired . | . . . . . . Time . | . . . . . . Parts Recycled . | . . . . . . Recycled Matter 26 | . . . . 26 . Retrieved Matter . | . . . . . . Retrieved Components . | . . . . . . Parts Scanalyzed . | . . . . . . Part Schematics Acquired . | . . . . . . Parts Damaged . | . . . . . . Bothacking | -11 -10 -9 -9 -8 -7 ------------ Run | Yrd Mat Mat Min Mat Fac Used RIF Installer . | . . . . . . Robots Hacked 4 | . . . . . 4 Non-combat 4 | . . . . . 4 Combat . | . . . . . . Robot Hacks Applied 5 | . . . . . 5 parse_system 2 | . . . . . 2 no_distress 2 | . . . . . 2 find_chute 1 | . . . . . 1 Relay Couplers Released 2 | . . . . . 2 Machine Destruction 2 | . . . . . 2 Fabnet Peak Effective % . | . . . . . . Robots Rewired . | . . . . . . Allies Hacked . | . . . . . . Hacks Repelled . | . . . . . . Allies | -11 -10 -9 -9 -8 -7 -------- Run | Yrd Mat Mat Min Mat Fac Total Allies . | . . . . . . Largest Group . | . . . . . . Highest-Rated Group . | . . . . . . Highest-Rated Ally . | . . . . . . Total Orders . | . . . . . . Ally Attacks . | . . . . . . Total Damage . | . . . . . . Kills . | . . . . . . Allies Corrupted . | . . . . . . Allies Melted . | . . . . . . Intel | -11 -10 -9 -9 -8 -7 ------- Run | Yrd Mat Mat Min Mat Fac Robot Analysis Total . | . . . . . . Derelict Logs Recovered 1 | . . . 1 . . Drone Launches . | . . . . . . Drone Recoveries . | . . . . . . Exploration | -11 -10 -9 -9 -8 -7 ------------- Run | Yrd Mat Mat Min Mat Fac Turns Passed 2753 | 60 261 55 98 992 1287 Spaces Moved 1709 | 40 173 119 172 496 709 Core 156 | 2 . . 12 79 63 Treads . | . . . . . . Legs 1021 | . . . . 417 604 Wheels 211 | 38 173 . . . . Hover . | . . . . . . Flight 321 | . . 119 160 . 42 Fastest Speed 31 | 50 80 31 31 120 40 Average Speed 119 | 78 94 31 34 146 144 Slowest Speed 350 | 80 100 31 120 350 260 Overloaded Moves . | . . . . . . Propulsion Burnouts . | . . . . . . Robots Hopped 1 | . . . . . 1 Cave-ins Triggered . | . . . . . . Exploration Rate (%) 25 | 5 33 21 31 43 22 Regions Visited 5 Branch Regions 1 Pre-discovered Areas . | . . . . . . Known Exits Taken . | . . . . . . Unknown Exits Taken 5 | 1 1 1 1 1 . Scrap Searched . | . . . . . . Spaces Dug 9 | . . . . 9 . Terrain Destroyed 25 | . . . . 16 9 Melee 9 | . . . . 9 . Projectile 16 | . . . . 7 9 AOE . | . . . . . . Terrain Rammed . | . . . . . . Walls Destroyed . | . . . . . . Machines Disabled . | . . . . . . Actions | -11 -10 -9 -9 -8 -7 --------- Run | Yrd Mat Mat Min Mat Fac Total 2101 | 66 223 134 189 616 873 Wait 26 | . . . 3 2 21 Move 1702 | 39 172 118 171 495 707 Hop 1 | . . . . . 1 Pick Up 64 | 12 13 2 . 16 21 Fast Attach 11 | . . . . 6 5 Attach 51 | 7 4 4 . 14 22 Detach 4 | . . 2 1 . 1 Swap 13 | . 3 2 2 4 2 Drop 36 | 1 7 4 2 9 13 Fire 160 | 4 24 2 10 57 63 Melee 13 | . . . . 13 . Ram 5 | 3 . . . . 2 Kick 15 | . . . . . 15 Crush . | . . . . . . Escape Stasis . | . . . . . . Rewire . | . . . . . . Trap . | . . . . . . Miscellaneous . | . . . . . . Route ------- -11/Scrapyard -10/Materials -9/Materials -9/Mines -8/Materials -7/Factory History --------- Turn | Location | Event 18 | -11/Scrapyard | Discovered new exit (range 15) 61 | -11/Scrapyard | Entered Materials 299 | -10/Materials | Discovered new exit (range 9) 317 | -10/Materials | Build established: Mutant 322 | -10/Materials | Entered another Materials area 322 | -9/Materials | Evolved 2 slots: Propulsion x2 364 | -9/Materials | Discovered new exit (range 10) 377 | -9/Materials | Entered Mines 378 | -9/Mines | Assembled infested the area 436 | -9/Mines | Learned Materials stockpile data 454 | -9/Mines | Discovered new exit (range 11) 475 | -9/Mines | Entered Materials 475 | -8/Materials | Evolved 2 slots: Utility x1, Weapon x1 501 | -8/Materials | Lost 7 parts (1p4n2u) 1379 | -8/Materials | Discovered new exit (range 4) 1467 | -8/Materials | Entered Factory 1467 | -7/Factory | Evolved 2 slots: Utility x1, Weapon x1 1850 | -7/Factory | Build established: Gunner 2603 | -7/Factory | System corruption reached 10% 2683 | -7/Factory | Core integrity fell below 50% 2717 | -7/Factory | Lost 17 parts (2p5n5u5w) 2745 | -7/Factory | Core integrity fell below 20% 2754 | -7/Factory | Destroyed by S-27 Virus with Autogun Last Messages --------------- 02741_ Imp. Targeting Computer destroyed. 02743_ W-25 Informer sends out distress signal. 02744_ U-05 Engineer lays Concrete. 02748_ Power Conduit explodes. 02748_ S-27 Virus destroyed. 02748_ U-05 Engineer destroyed. 02748_ S-27 Virus destroyed. 02748_ T-07 Excavator destroyed. 02748_ W-25 Informer destroyed. 02748_ Acquired 14 matter. 02748_ U-05 Engineer lays Concrete. 02749_ System corrupted: Energy discharge (-14). 02749_ R-06 Scavenger inserts Microactuators into recycling unit. 02749_ U-05 Engineer lays Concrete. 02751_ R-06 Scavenger collects VTOL Module. 02751_ K-01 Serf collects debris. 02752_ U-05 Engineer builds a Wall. 02752_ Imp. Titanium Leg destroyed. 02753_ R-06 Scavenger collects VTOL Module. 02753_ U-05 Engineer lays Concrete. Map ----- +----------------------------------------------------+ | ????????????????????????????????????" ??????????? | | ????????????????????????????????? """ ??????????? | | ????????????????????????????????? """ #?????????? | | ???????????????????????????????# #?????????? | | ???????????????????????????????# """ #?????????? | | ???????????????????????????????# """ #?????????? | | ???????????????????????????????# """ #?????????? | | ???????????????????????????????# #?????????? | | ???????????????????????????????# """ ########### | | ??????????????????????????? ???# """ " | | ?????????????????????????## #### """ ####### | | ?????????????????????????# #?????# " " | | ?????????????????????????+ #?????# " " | | ?????????????????????????# ^ ##/####### " " | | ?????????????????????????# ^ # # " " | | ?????????????????????????# !! # """ # " " | | ?????????????????????????#^ !!s # Y" # " " | | ?????????????????????????# s # """ # " " | | ?????????????????????????# !! # # " " | | ?????????????????????????# !! %#r """"" # " " | | ??????????????+########### !*u """"" # | | ??????????????? k ; """ ##### | | ?????????????????# r r !%; ##### | | ?????????????????# k % [%;;######+##### | | ?????????????????# %![s ru | | ?????????? + @ * = %s*ug | | ??????????????# k ###;;;; = | | ??????????????# ??# " s | | ??????????????+ ???### # !! """ | | ??????????????# ##?????#### !! """"" | | ??????????????# ??????????# ! """"" | | ??????????????+ ?????????? + | | ??????????????####+#?????????? # | | ????????????????????????????? # ### | | ????????????????????????????"""?# ### | | ?????????????????????????????"??# ### | | ????????????????????????????????# # | | ????????????????????????????????# / | | ????????????????????????????????# # | | ????????????????????????????????# ### | | ???????????????????????????????? #?? | | ????????????????????????????????T #?? | | ????????????????????????????????# #?? | | ????????????????????????????????? #?? | | ????????????????????????????????? #?? | | ?????????????????????????????????? #?? | | ?????????????????????????????????? #?? | | ??????????????????????????????????? ?? | | ???????????????????????????????????? #?? | | ?????????????????????????????????????? ??? | +----------------------------------------------------+ Best States ------------- Heat Dissipation 48 Energy Generation 15 Energy Capacity 340 Matter Stores 300 Matter Capacity 300 Sight Range 16 Terrain Scan Density 10 Jamming Range 12 Armor Coverage 225 Evasion (%) 63 Targeting Accuracy 6 Item Schematics ----------------- None Robot Schematics ------------------ None Fabricated ------------ Nothing Alien Tech Used ----------------- None Achievements -------------- I Survived The Infestation Made in Tau Ceti IV Oops Please Form A Line Power Corrupts System Compromised Use The Force Challenges ------------ None Game ------ Seed PlatingMatterGreatsword Manual? 0 Play Time 01:01:06 Cumulative 2.3 hours Start 2024.04.05 @ 15:59:39 End 2024.04.06 @ 13:47:05 Sessions 3 Manual Loads 0 Difficulty Rogue Special Mode None Game No. 3 Rogue 3 Adventurer 0 Explorer 0 Win Type - Total 0 Types 0/0/0/0/0/0/0/0/0 Lore% 0 Gallery% 7 Achievement% 5 Wizard Run 0 Options --------- Layout 0 ASCII 0 Keyboard 0 Movement Numpad Keybinds 0 Fullscreen 1 Font 18/SmallcapsGlow Map View 38x25 Zoom Use 97% Tactical HUD 1 Map Filters NONE Filters NONE Steam 1 RUN: d91beaf4-2b19-44f3-abb9-6a395be3d327